[Event "Titled Tuesday Blitz June 27 Early 2023"]
[White "Jakubowski, Krzysztof"]
[Black "Mahdavi, Reza"]
[WhiteFideId "1112848"]
[BlackFideId "12595926"]
[WhiteElo "2625"]
[BlackElo "2747"]
[Result "1-0"]
[Round "8"]
[TimeControl "180+2"]
[Date "2023.06.27"]
[WhiteClock "0:00:13"]
[BlackClock "0:00:01"]
[Board "42"]

1. e4 {[%clk 0:02:55]}  c5 {[%clk 0:02:59]} 2. Nf3 {[%clk 0:02:54]}  d6 {[%clk 0:02:57]} 3. d4 {[%clk 0:02:53]}  cxd4 {[%clk 0:02:58]} 4. Nxd4 {[%clk 0:02:53]}  Nf6 {[%clk 0:02:54]} 5. Nc3 {[%clk 0:02:48]}  a6 {[%clk 0:02:51]} 6. Be3 {[%clk 0:02:47]}  e5 {[%clk 0:02:39]} 7. Nb3 {[%clk 0:02:47]}  Be6 {[%clk 0:02:34]} 8. h3 {[%clk 0:02:46]}  Nbd7 {[%clk 0:02:32]} 9. g4 {[%clk 0:02:39]}  h6 {[%clk 0:02:22]} 10. Qd2 {[%clk 0:02:27]}  b5 {[%clk 0:02:17]} 11. O-O-O {[%clk 0:02:21]}  b4 {[%clk 0:02:05]} 12. Nd5 {[%clk 0:02:19]}  Nxe4 {[%clk 0:02:02]} 13. Qxb4 {[%clk 0:02:17]}  Bxd5 {[%clk 0:01:53]} 14. Rxd5 {[%clk 0:02:16]}  Nef6 {[%clk 0:01:54]} 15. Bg2 {[%clk 0:02:07]}  Nxd5 {[%clk 0:01:46]} 16. Bxd5 {[%clk 0:02:06]}  Rc8 {[%clk 0:01:47]} 17. Na5 {[%clk 0:01:30]}  Qc7 {[%clk 0:01:46]} 18. c3 {[%clk 0:01:16]}  Be7 {[%clk 0:01:43]} 19. Nc6 {[%clk 0:01:09]}  Nf6 {[%clk 0:01:39]} 20. Nxe7 {[%clk 0:01:02]}  Qxe7 {[%clk 0:01:21]} 21. Bb7 {[%clk 0:00:57]}  Rc7 {[%clk 0:01:18]} 22. Bxa6 {[%clk 0:00:51]}  O-O {[%clk 0:01:19]} 23. Rd1 {[%clk 0:00:47]}  Qe6 {[%clk 0:01:16]} 24. Qxd6 {[%clk 0:00:39]}  Qxa2 {[%clk 0:00:58]} 25. Qxc7 {[%clk 0:00:39]}  Qa1+ {[%clk 0:00:59]} 26. Kc2 {[%clk 0:00:38]}  Qa4+ {[%clk 0:00:59]} 27. Kc1 {[%clk 0:00:37]}  Qa1+ {[%clk 0:00:59]} 28. Kc2 {[%clk 0:00:37]}  Qa4+ {[%clk 0:01:00]} 29. Kc1 {[%clk 0:00:37]}  Qxa6 {[%clk 0:01:01]} 30. Rd8 {[%clk 0:00:36]}  Qa1+ {[%clk 0:00:59]} 31. Kc2 {[%clk 0:00:35]}  Qa4+ {[%clk 0:01:00]} 32. Kc1 {[%clk 0:00:33]}  Qa1+ {[%clk 0:00:59]} 33. Kc2 {[%clk 0:00:33]}  Qa4+ {[%clk 0:01:00]} 34. Kc1 {[%clk 0:00:34]}  Rxd8 {[%clk 0:01:01]} 35. Qxd8+ {[%clk 0:00:34]}  Kh7 {[%clk 0:01:01]} 36. Qd3+ {[%clk 0:00:34]}  e4 {[%clk 0:00:59]} 37. Qc2 {[%clk 0:00:34]}  Qa1+ {[%clk 0:00:58]} 38. Qb1 {[%clk 0:00:33]}  Qa6 {[%clk 0:00:58]} 39. Bd4 {[%clk 0:00:28]}  Qf1+ {[%clk 0:00:29]} 40. Kc2 {[%clk 0:00:28]}  Qe2+ {[%clk 0:00:28]} 41. Kb3 {[%clk 0:00:27]}  Qb5+ {[%clk 0:00:26]} 42. Ka3 {[%clk 0:00:26]}  Qa6+ {[%clk 0:00:27]} 43. Kb3 {[%clk 0:00:26]}  Qb7+ {[%clk 0:00:27]} 44. Ka4 {[%clk 0:00:25]}  Qc6+ {[%clk 0:00:24]} 45. Kb3 {[%clk 0:00:23]}  Ne8 {[%clk 0:00:24]} 46. Qc2 {[%clk 0:00:20]}  Nd6 {[%clk 0:00:22]} 47. Ka2 {[%clk 0:00:19]}  Nb5 {[%clk 0:00:20]} 48. Be3 {[%clk 0:00:19]}  Qa6+ {[%clk 0:00:18]} 49. Kb1 {[%clk 0:00:19]}  Nd6 {[%clk 0:00:19]} 50. b3 {[%clk 0:00:18]}  h5 {[%clk 0:00:17]} 51. c4 {[%clk 0:00:17]}  Qb7 {[%clk 0:00:14]} 52. c5 {[%clk 0:00:16]}  Nb5 {[%clk 0:00:15]} 53. c6 {[%clk 0:00:15]}  Qe7 {[%clk 0:00:13]} 54. Qc5 {[%clk 0:00:14]}  Na3+ {[%clk 0:00:01]} 55. Kb2 {[%clk 0:00:13]} 1-0


[Site "https://www.chess.com"]

[Event "Titled Tuesday Blitz June 27 Early 2023"]
[White "Janaszak, Dawid"]
[Black "Lorparizangeneh, Shahin"]
[WhiteFideId "1119206"]
[BlackFideId "12521604"]
[WhiteElo "2583"]
[BlackElo "2740"]
[Result "0-1"]
[Round "8"]
[TimeControl "180+2"]
[Date "2023.06.27"]
[WhiteClock "0:00:00"]
[BlackClock "0:00:49"]
[Board "44"]

1. e4 {[%clk 0:02:19]}  e5 {[%clk 0:02:58]} 2. Nf3 {[%clk 0:02:19]}  Nc6 {[%clk 0:02:59]} 3. d4 {[%clk 0:02:18]}  exd4 {[%clk 0:02:58]} 4. Nxd4 {[%clk 0:02:19]}  Bc5 {[%clk 0:02:56]} 5. Nb3 {[%clk 0:02:19]}  Bb6 {[%clk 0:02:56]} 6. Nc3 {[%clk 0:02:20]}  Nf6 {[%clk 0:02:55]} 7. Bg5 {[%clk 0:02:19]}  h6 {[%clk 0:02:54]} 8. Bh4 {[%clk 0:02:19]}  d6 {[%clk 0:02:52]} 9. Qe2 {[%clk 0:02:17]}  a5 {[%clk 0:02:47]} 10. Nd5 {[%clk 0:02:08]}  g5 {[%clk 0:02:41]} 11. Nxb6 {[%clk 0:02:07]}  cxb6 {[%clk 0:02:39]} 12. Bg3 {[%clk 0:02:07]}  a4 {[%clk 0:02:33]} 13. Nd2 {[%clk 0:02:07]}  O-O {[%clk 0:02:27]} 14. a3 {[%clk 0:01:34]}  Re8 {[%clk 0:02:25]} 15. O-O-O {[%clk 0:01:31]}  d5 {[%clk 0:02:21]} 16. e5 {[%clk 0:01:32]}  Bg4 {[%clk 0:02:16]} 17. Nf3 {[%clk 0:01:23]}  Ne4 {[%clk 0:02:11]} 18. Qb5 {[%clk 0:01:22]}  Ra5 {[%clk 0:02:06]} 19. Qd3 {[%clk 0:01:10]}  Bf5 {[%clk 0:02:03]} 20. Nd4 {[%clk 0:00:55]}  Bg6 {[%clk 0:02:02]} 21. Qe3 {[%clk 0:00:49]}  Nxg3 {[%clk 0:01:55]} 22. hxg3 {[%clk 0:00:35]}  Nxe5 {[%clk 0:01:50]} 23. Qc3 {[%clk 0:00:21]}  Rc5 {[%clk 0:01:49]} 24. Qb4 {[%clk 0:00:20]}  Nc6 {[%clk 0:01:46]} 25. Qxa4 {[%clk 0:00:12]}  Nxd4 {[%clk 0:01:43]} 26. Bd3 {[%clk 0:00:10]}  Nxc2 {[%clk 0:01:17]} 27. Bxg6 {[%clk 0:00:10]}  Ne3+ {[%clk 0:01:16]} 28. Kb1 {[%clk 0:00:09]}  Nxd1 {[%clk 0:01:16]} 29. Rxh6 {[%clk 0:00:07]}  Kg7 {[%clk 0:01:11]} 30. Rh1 {[%clk 0:00:03]}  Nc3+ {[%clk 0:01:07]} 31. bxc3 {[%clk 0:00:03]}  Kxg6 {[%clk 0:01:06]} 32. g4 {[%clk 0:00:02]}  Re4 {[%clk 0:00:57]} 33. Qc2 {[%clk 0:00:02]}  Qf6 {[%clk 0:00:49]} 34. f3 {[%clk 0:00:00]}  Rxc3 {[%clk 0:00:49]} 0-1


[Site "https://www.chess.com"]

[Event "Titled Tuesday Blitz June 27 Early 2023"]
[White "Mendez Fortes, Eduardo Jesus"]
[Black "Tanenbaum, Zachary"]
[WhiteFideId "3502376"]
[BlackFideId "2060850"]
[WhiteElo "2589"]
[BlackElo "2738"]
[Result "1-0"]
[Round "8"]
[TimeControl "180+2"]
[Date "2023.06.27"]
[WhiteClock "0:00:41"]
[BlackClock "0:00:02"]
[Board "45"]

1. e4 {[%clk 0:03:00]}  e5 {[%clk 0:03:00]} 2. Nf3 {[%clk 0:03:00]}  Nc6 {[%clk 0:03:00]} 3. Bb5 {[%clk 0:02:57]}  a6 {[%clk 0:02:59]} 4. Ba4 {[%clk 0:02:58]}  d6 {[%clk 0:03:00]} 5. c3 {[%clk 0:02:58]}  Nf6 {[%clk 0:03:00]} 6. O-O {[%clk 0:02:57]}  Be7 {[%clk 0:03:00]} 7. Re1 {[%clk 0:02:56]}  O-O {[%clk 0:03:00]} 8. h3 {[%clk 0:02:57]}  b5 {[%clk 0:02:59]} 9. Bb3 {[%clk 0:02:56]}  Nb8 {[%clk 0:02:51]} 10. d4 {[%clk 0:02:56]}  Nbd7 {[%clk 0:02:51]} 11. c4 {[%clk 0:02:53]}  Bb7 {[%clk 0:02:46]} 12. Nc3 {[%clk 0:02:51]}  exd4 {[%clk 0:02:42]} 13. Nxd4 {[%clk 0:02:50]}  Nc5 {[%clk 0:02:15]} 14. cxb5 {[%clk 0:02:44]}  axb5 {[%clk 0:02:13]} 15. Bd5 {[%clk 0:02:20]}  Nxd5 {[%clk 0:01:59]} 16. Nxd5 {[%clk 0:02:10]}  Bf6 {[%clk 0:01:44]} 17. Nxb5 {[%clk 0:02:08]}  Ne6 {[%clk 0:01:16]} 18. Nbc3 {[%clk 0:01:58]}  Re8 {[%clk 0:01:10]} 19. Be3 {[%clk 0:01:58]}  Bxc3 {[%clk 0:01:03]} 20. Nxc3 {[%clk 0:01:57]}  Qf6 {[%clk 0:00:56]} 21. Qd2 {[%clk 0:01:53]}  Qg6 {[%clk 0:00:55]} 22. f3 {[%clk 0:01:51]}  f5 {[%clk 0:00:52]} 23. exf5 {[%clk 0:01:44]}  Qxf5 {[%clk 0:00:53]} 24. Qf2 {[%clk 0:01:18]}  Rf8 {[%clk 0:00:48]} 25. a4 {[%clk 0:01:17]}  Qg6 {[%clk 0:00:45]} 26. Kh2 {[%clk 0:01:15]}  Ra5 {[%clk 0:00:45]} 27. Qg3 {[%clk 0:01:14]}  Qh5 {[%clk 0:00:36]} 28. h4 {[%clk 0:01:01]}  Bxf3 {[%clk 0:00:28]} 29. Nb5 {[%clk 0:00:52]}  Bc6 {[%clk 0:00:14]} 30. Bd2 {[%clk 0:00:52]}  Rxa4 {[%clk 0:00:04]} 31. Rxa4 {[%clk 0:00:47]}  Bxb5 {[%clk 0:00:05]} 32. Rg4 {[%clk 0:00:44]}  Bd7 {[%clk 0:00:03]} 33. Rxe6 {[%clk 0:00:42]}  Bxe6 {[%clk 0:00:04]} 34. Rxg7+ {[%clk 0:00:42]}  Kh8 {[%clk 0:00:05]} 35. Bc3 {[%clk 0:00:42]}  h6 {[%clk 0:00:03]} 36. Rg8+ {[%clk 0:00:41]}  Kh7 {[%clk 0:00:02]} 37. Qg7# {[%clk 0:00:41]} 1-0


[Site "https://www.chess.com"]

[Event "Titled Tuesday Blitz June 27 Early 2023"]
[White "Klukin, Kirill"]
[Black "NicolaiMaxime"]
[WhiteFideId "24199273"]
[WhiteElo "2734"]
[BlackElo "2573"]
[Result "0-1"]
[Round "8"]
[TimeControl "180+2"]
[Date "2023.06.27"]
[WhiteClock "0:00:01"]
[BlackClock "0:00:35"]
[Board "46"]

1. f4 {[%clk 0:02:56]}  d5 {[%clk 0:02:59]} 2. Nf3 {[%clk 0:02:55]}  Nh6 {[%clk 0:03:00]} 3. g3 {[%clk 0:02:55]}  Nf5 {[%clk 0:02:58]} 4. Bg2 {[%clk 0:02:56]}  g6 {[%clk 0:02:58]} 5. O-O {[%clk 0:02:56]}  Bg7 {[%clk 0:02:59]} 6. d3 {[%clk 0:02:57]}  O-O {[%clk 0:02:59]} 7. e4 {[%clk 0:02:54]}  dxe4 {[%clk 0:02:56]} 8. dxe4 {[%clk 0:02:55]}  Nd6 {[%clk 0:02:57]} 9. Qe2 {[%clk 0:02:51]}  b6 {[%clk 0:02:56]} 10. Rd1 {[%clk 0:02:50]}  Nd7 {[%clk 0:02:51]} 11. e5 {[%clk 0:02:47]}  Nf5 {[%clk 0:02:34]} 12. e6 {[%clk 0:02:39]}  fxe6 {[%clk 0:02:31]} 13. Qxe6+ {[%clk 0:02:25]}  Kh8 {[%clk 0:02:31]} 14. Ng5 {[%clk 0:02:26]}  Bd4+ {[%clk 0:01:56]} 15. Kh1 {[%clk 0:01:54]}  Nc5 {[%clk 0:01:47]} 16. Nf7+ {[%clk 0:01:31]}  Rxf7 {[%clk 0:01:47]} 17. Qxf7 {[%clk 0:01:28]}  Be6 {[%clk 0:01:47]} 18. Qxf5 {[%clk 0:00:34]}  Bxf5 {[%clk 0:01:43]} 19. c3 {[%clk 0:00:35]}  Ne4 {[%clk 0:01:38]} 20. Rxd4 {[%clk 0:00:34]}  Qc8 {[%clk 0:01:20]} 21. Bxe4 {[%clk 0:00:33]}  Bxe4+ {[%clk 0:01:12]} 22. Rxe4 {[%clk 0:00:33]}  Qb7 {[%clk 0:01:12]} 23. Nd2 {[%clk 0:00:30]}  Rd8 {[%clk 0:01:13]} 24. Kg1 {[%clk 0:00:23]}  Rxd2 {[%clk 0:01:13]} 25. Bxd2 {[%clk 0:00:24]}  Qxe4 {[%clk 0:01:13]} 26. Re1 {[%clk 0:00:25]}  Qc2 {[%clk 0:01:10]} 27. Be3 {[%clk 0:00:25]}  Kg8 {[%clk 0:01:05]} 28. Bc1 {[%clk 0:00:11]}  Kf7 {[%clk 0:01:03]} 29. a3 {[%clk 0:00:07]}  a5 {[%clk 0:01:02]} 30. f5 {[%clk 0:00:04]}  gxf5 {[%clk 0:01:01]} 31. Bg5 {[%clk 0:00:04]}  e6 {[%clk 0:01:00]} 32. Bc1 {[%clk 0:00:04]}  a4 {[%clk 0:00:59]} 33. Bf4 {[%clk 0:00:02]}  Qxb2 {[%clk 0:00:56]} 34. Be5 {[%clk 0:00:02]}  Qxa3 {[%clk 0:00:54]} 35. Rd1 {[%clk 0:00:03]}  Qc5+ {[%clk 0:00:49]} 36. Bd4 {[%clk 0:00:03]}  Qc4 {[%clk 0:00:47]} 37. Ra1 {[%clk 0:00:03]}  c5 {[%clk 0:00:46]} 38. Be5 {[%clk 0:00:04]}  b5 {[%clk 0:00:46]} 39. Rd1 {[%clk 0:00:03]}  a3 {[%clk 0:00:39]} 40. Rd7+ {[%clk 0:00:03]}  Ke8 {[%clk 0:00:40]} 41. Ra7 {[%clk 0:00:03]}  a2 {[%clk 0:00:40]} 42. Bf6 {[%clk 0:00:02]}  b4 {[%clk 0:00:39]} 43. cxb4 {[%clk 0:00:02]}  cxb4 {[%clk 0:00:39]} 44. Re7+ {[%clk 0:00:01]}  Kf8 {[%clk 0:00:39]} 45. Ra7 {[%clk 0:00:02]}  b3 {[%clk 0:00:40]} 46. h4 {[%clk 0:00:03]}  Qc1+ {[%clk 0:00:38]} 47. Kh2 {[%clk 0:00:03]}  b2 {[%clk 0:00:38]} 48. Be7+ {[%clk 0:00:02]}  Ke8 {[%clk 0:00:38]} 49. Bg5 {[%clk 0:00:02]}  Qc2+ {[%clk 0:00:36]} 50. Kh3 {[%clk 0:00:02]}  b1=Q {[%clk 0:00:34]} 51. Re7+ {[%clk 0:00:01]}  Kf8 {[%clk 0:00:35]} 0-1


[Site "https://www.chess.com"]

[Event "Titled Tuesday Blitz June 27 Early 2023"]
[White "Morgunov, Anatoly"]
[Black "Quintiliano Pinto, Renato R."]
[WhiteFideId "4145909"]
[BlackFideId "2117568"]
[WhiteElo "2481"]
[BlackElo "2716"]
[Result "0-1"]
[Round "8"]
[TimeControl "180+2"]
[Date "2023.06.27"]
[WhiteClock "0:00:20"]
[BlackClock "0:00:20"]
[Board "48"]

1. d4 {[%clk 0:03:00]}  Nf6 {[%clk 0:02:58]} 2. c4 {[%clk 0:03:01]}  e6 {[%clk 0:02:58]} 3. g3 {[%clk 0:03:00]}  d5 {[%clk 0:02:55]} 4. Bg2 {[%clk 0:03:00]}  Bb4+ {[%clk 0:02:54]} 5. Bd2 {[%clk 0:02:59]}  Be7 {[%clk 0:02:52]} 6. Nf3 {[%clk 0:02:59]}  O-O {[%clk 0:02:51]} 7. O-O {[%clk 0:02:59]}  c6 {[%clk 0:02:49]} 8. Qc2 {[%clk 0:02:59]}  a5 {[%clk 0:02:48]} 9. Rd1 {[%clk 0:02:59]}  h6 {[%clk 0:02:48]} 10. h4 {[%clk 0:02:57]}  b6 {[%clk 0:02:46]} 11. Bf4 {[%clk 0:02:57]}  Ba6 {[%clk 0:02:43]} 12. cxd5 {[%clk 0:02:54]}  cxd5 {[%clk 0:02:42]} 13. Ne5 {[%clk 0:02:54]}  Nfd7 {[%clk 0:02:37]} 14. Nc3 {[%clk 0:02:46]}  Nxe5 {[%clk 0:02:30]} 15. dxe5 {[%clk 0:02:47]}  Nd7 {[%clk 0:02:28]} 16. e4 {[%clk 0:02:47]}  d4 {[%clk 0:02:28]} 17. Rxd4 {[%clk 0:02:47]}  Qc7 {[%clk 0:02:25]} 18. Qd1 {[%clk 0:02:19]}  Rfd8 {[%clk 0:02:19]} 19. Rc1 {[%clk 0:02:13]}  Nc5 {[%clk 0:02:11]} 20. Rd6 {[%clk 0:01:56]}  Rac8 {[%clk 0:01:48]} 21. Qg4 {[%clk 0:01:50]}  Bxd6 {[%clk 0:01:33]} 22. exd6 {[%clk 0:01:47]}  Rxd6 {[%clk 0:01:32]} 23. Bxh6 {[%clk 0:01:23]}  f5 {[%clk 0:01:30]} 24. Qg5 {[%clk 0:01:03]}  Kh7 {[%clk 0:01:02]} 25. exf5 {[%clk 0:00:46]}  gxh6 {[%clk 0:00:53]} 26. Qg6+ {[%clk 0:00:47]}  Kh8 {[%clk 0:00:54]} 27. Ne4 {[%clk 0:00:40]}  Rd7 {[%clk 0:00:34]} 28. Nf6 {[%clk 0:00:37]}  Rh7 {[%clk 0:00:27]} 29. fxe6 {[%clk 0:00:26]}  Qg7 {[%clk 0:00:22]} 30. Qxh7+ {[%clk 0:00:22]}  Qxh7 {[%clk 0:00:22]} 31. Nxh7 {[%clk 0:00:23]}  Kxh7 {[%clk 0:00:23]} 32. f4 {[%clk 0:00:20]}  Kg7 {[%clk 0:00:22]} 33. f5 {[%clk 0:00:20]}  Kf6 {[%clk 0:00:21]} 34. g4 {[%clk 0:00:21]}  Be2 {[%clk 0:00:18]} 35. a3 {[%clk 0:00:17]}  a4 {[%clk 0:00:18]} 36. Bh3 {[%clk 0:00:15]}  Rg8 {[%clk 0:00:17]} 37. Kf2 {[%clk 0:00:13]}  Bxg4 {[%clk 0:00:15]} 38. Rg1 {[%clk 0:00:12]}  h5 {[%clk 0:00:15]} 39. Ke3 {[%clk 0:00:09]}  Kxf5 {[%clk 0:00:15]} 40. Rf1+ {[%clk 0:00:09]}  Kxe6 {[%clk 0:00:15]} 41. Bxg4+ {[%clk 0:00:10]}  hxg4 {[%clk 0:00:15]} 42. Rf8 {[%clk 0:00:10]}  Rxf8 {[%clk 0:00:15]} 43. h5 {[%clk 0:00:10]}  Ke5 {[%clk 0:00:15]} 44. h6 {[%clk 0:00:11]}  Rf3+ {[%clk 0:00:15]} 45. Ke2 {[%clk 0:00:11]}  Rh3 {[%clk 0:00:16]} 46. h7 {[%clk 0:00:12]}  Rxh7 {[%clk 0:00:16]} 47. Kf2 {[%clk 0:00:12]}  Rh3 {[%clk 0:00:17]} 48. b4 {[%clk 0:00:13]}  Ne4+ {[%clk 0:00:17]} 49. Kg2 {[%clk 0:00:14]}  Kf4 {[%clk 0:00:17]} 50. b5 {[%clk 0:00:15]}  Rh4 {[%clk 0:00:17]} 51. Kg1 {[%clk 0:00:16]}  Kg3 {[%clk 0:00:16]} 52. Kf1 {[%clk 0:00:16]}  Rh2 {[%clk 0:00:17]} 53. Kg1 {[%clk 0:00:16]}  Nc3 {[%clk 0:00:17]} 54. Kf1 {[%clk 0:00:16]}  Nxb5 {[%clk 0:00:18]} 55. Kg1 {[%clk 0:00:17]}  Nxa3 {[%clk 0:00:18]} 56. Kf1 {[%clk 0:00:17]}  Nc4 {[%clk 0:00:19]} 57. Ke1 {[%clk 0:00:18]}  a3 {[%clk 0:00:19]} 58. Kd1 {[%clk 0:00:19]}  a2 {[%clk 0:00:20]} 59. Kc1 {[%clk 0:00:20]}  a1=Q# {[%clk 0:00:20]} 0-1


[Site "https://www.chess.com"]

[Event "Titled Tuesday Blitz June 27 Early 2023"]
[White "Pap, Gyula"]
[Black "Korchmar, Vasiliy"]
[WhiteFideId "725323"]
[BlackFideId "24131750"]
[WhiteElo "2923"]
[BlackElo "2689"]
[Result "1-0"]
[Round "8"]
[TimeControl "180+2"]
[Date "2023.06.27"]
[WhiteClock "0:02:00"]
[BlackClock "0:00:34"]
[Board "52"]

1. d4 {[%clk 0:03:00]}  d5 {[%clk 0:03:00]} 2. c4 {[%clk 0:02:59]}  c6 {[%clk 0:03:00]} 3. Nf3 {[%clk 0:02:59]}  Nf6 {[%clk 0:03:01]} 4. Nbd2 {[%clk 0:02:59]}  e6 {[%clk 0:02:49]} 5. Qc2 {[%clk 0:02:58]}  Bd6 {[%clk 0:02:48]} 6. e4 {[%clk 0:02:57]}  dxe4 {[%clk 0:02:46]} 7. Nxe4 {[%clk 0:02:58]}  Nxe4 {[%clk 0:02:45]} 8. Qxe4 {[%clk 0:02:59]}  Nd7 {[%clk 0:02:45]} 9. Bd2 {[%clk 0:02:55]}  O-O {[%clk 0:02:37]} 10. O-O-O {[%clk 0:02:54]}  Nf6 {[%clk 0:02:32]} 11. Qc2 {[%clk 0:02:51]}  b5 {[%clk 0:02:32]} 12. Bg5 {[%clk 0:02:41]}  bxc4 {[%clk 0:02:30]} 13. Bxc4 {[%clk 0:02:42]}  Be7 {[%clk 0:02:29]} 14. Ne5 {[%clk 0:02:40]}  Bb7 {[%clk 0:02:29]} 15. Kb1 {[%clk 0:02:34]}  Rc8 {[%clk 0:02:21]} 16. Rhe1 {[%clk 0:02:33]}  Nd5 {[%clk 0:02:20]} 17. Bxe7 {[%clk 0:02:31]}  Qxe7 {[%clk 0:02:21]} 18. Nd3 {[%clk 0:02:31]}  Nb4 {[%clk 0:02:09]} 19. Nxb4 {[%clk 0:02:27]}  Qxb4 {[%clk 0:02:10]} 20. Re3 {[%clk 0:02:27]}  Qe7 {[%clk 0:02:00]} 21. Bd3 {[%clk 0:02:19]}  g6 {[%clk 0:01:59]} 22. Qc5 {[%clk 0:02:19]}  Qxc5 {[%clk 0:01:32]} 23. dxc5 {[%clk 0:02:20]}  Rfd8 {[%clk 0:01:33]} 24. Be2 {[%clk 0:02:16]}  Rxd1+ {[%clk 0:01:18]} 25. Bxd1 {[%clk 0:02:17]}  Rd8 {[%clk 0:01:18]} 26. Kc2 {[%clk 0:02:14]}  Rd5 {[%clk 0:01:15]} 27. b4 {[%clk 0:02:14]}  Ba6 {[%clk 0:01:13]} 28. Bf3 {[%clk 0:02:14]}  Rd4 {[%clk 0:01:14]} 29. Kc3 {[%clk 0:02:11]}  Rc4+ {[%clk 0:00:59]} 30. Kb3 {[%clk 0:02:11]}  Rf4 {[%clk 0:00:50]} 31. Bxc6 {[%clk 0:02:10]}  Rxf2 {[%clk 0:00:46]} 32. b5 {[%clk 0:02:09]}  Bc8 {[%clk 0:00:46]} 33. Rd3 {[%clk 0:02:09]}  Kg7 {[%clk 0:00:39]} 34. Rd8 {[%clk 0:02:09]}  Rf5 {[%clk 0:00:39]} 35. Rxc8 {[%clk 0:02:02]}  Rxc5 {[%clk 0:00:39]} 36. Rc7 {[%clk 0:02:02]}  e5 {[%clk 0:00:36]} 37. Rxa7 {[%clk 0:02:02]}  e4 {[%clk 0:00:34]} 38. Re7 {[%clk 0:02:00]} 1-0


[Site "https://www.chess.com"]

[Event "Titled Tuesday Blitz June 27 Early 2023"]
[White "Molina, Roberto Junio Brito"]
[Black "Sebag, Marie"]
[WhiteFideId "2109450"]
[BlackFideId "617822"]
[WhiteElo "2830"]
[BlackElo "2563"]
[Result "1/2-1/2"]
[Round "8"]
[TimeControl "180+2"]
[Date "2023.06.27"]
[WhiteClock "0:00:06"]
[BlackClock "0:00:06"]
[Board "55"]

1. e4 {[%clk 0:03:00]}  c6 {[%clk 0:02:35]} 2. d4 {[%clk 0:02:58]}  d5 {[%clk 0:02:35]} 3. exd5 {[%clk 0:02:58]}  cxd5 {[%clk 0:02:34]} 4. Bd3 {[%clk 0:02:59]}  Nc6 {[%clk 0:02:34]} 5. c3 {[%clk 0:02:59]}  Nf6 {[%clk 0:02:32]} 6. Bf4 {[%clk 0:02:59]}  Bg4 {[%clk 0:02:32]} 7. Nf3 {[%clk 0:02:59]}  e6 {[%clk 0:02:31]} 8. Nbd2 {[%clk 0:02:56]}  Bd6 {[%clk 0:02:30]} 9. Bxd6 {[%clk 0:02:56]}  Qxd6 {[%clk 0:02:31]} 10. O-O {[%clk 0:02:56]}  O-O {[%clk 0:02:30]} 11. Qe1 {[%clk 0:02:56]}  Bxf3 {[%clk 0:02:24]} 12. Nxf3 {[%clk 0:02:56]}  Nd7 {[%clk 0:02:20]} 13. Qe3 {[%clk 0:02:55]}  h6 {[%clk 0:02:20]} 14. Rfe1 {[%clk 0:02:53]}  Rac8 {[%clk 0:02:17]} 15. Re2 {[%clk 0:02:50]}  a6 {[%clk 0:02:16]} 16. Rae1 {[%clk 0:02:45]}  b5 {[%clk 0:02:16]} 17. a3 {[%clk 0:02:45]}  Ne7 {[%clk 0:02:03]} 18. Ne5 {[%clk 0:02:37]}  Nxe5 {[%clk 0:02:03]} 19. dxe5 {[%clk 0:02:38]}  Qc5 {[%clk 0:02:03]} 20. Qf4 {[%clk 0:02:33]}  Rcd8 {[%clk 0:01:59]} 21. Rd2 {[%clk 0:02:28]}  Rd7 {[%clk 0:01:44]} 22. Bb1 {[%clk 0:02:26]}  Rfd8 {[%clk 0:01:42]} 23. Red1 {[%clk 0:02:26]}  Nc6 {[%clk 0:01:32]} 24. h4 {[%clk 0:02:18]}  d4 {[%clk 0:01:27]} 25. Qe4 {[%clk 0:02:17]}  g6 {[%clk 0:01:10]} 26. h5 {[%clk 0:01:55]}  Nxe5 {[%clk 0:01:02]} 27. hxg6 {[%clk 0:01:42]}  Nxg6 {[%clk 0:00:57]} 28. cxd4 {[%clk 0:01:38]}  Qg5 {[%clk 0:00:56]} 29. g3 {[%clk 0:01:33]}  Kg7 {[%clk 0:00:42]} 30. Ba2 {[%clk 0:01:26]}  e5 {[%clk 0:00:34]} 31. d5 {[%clk 0:01:20]}  f5 {[%clk 0:00:34]} 32. Qe2 {[%clk 0:01:09]}  e4 {[%clk 0:00:33]} 33. Qe3 {[%clk 0:01:01]}  Ne5 {[%clk 0:00:28]} 34. Kg2 {[%clk 0:00:55]}  Qxe3 {[%clk 0:00:21]} 35. fxe3 {[%clk 0:00:55]}  Nd3 {[%clk 0:00:21]} 36. Rc2 {[%clk 0:00:52]}  Kf6 {[%clk 0:00:20]} 37. Rh1 {[%clk 0:00:51]}  Kg5 {[%clk 0:00:18]} 38. Kf1 {[%clk 0:00:51]}  Ne5 {[%clk 0:00:15]} 39. Rch2 {[%clk 0:00:48]}  Ng4 {[%clk 0:00:15]} 40. Rh5+ {[%clk 0:00:47]}  Kg6 {[%clk 0:00:15]} 41. Ke2 {[%clk 0:00:47]}  Rc8 {[%clk 0:00:15]} 42. Kd2 {[%clk 0:00:47]}  Rdc7 {[%clk 0:00:14]} 43. Bb3 {[%clk 0:00:43]}  a5 {[%clk 0:00:11]} 44. Bd1 {[%clk 0:00:39]}  a4 {[%clk 0:00:11]} 45. R5h4 {[%clk 0:00:29]}  Rc5 {[%clk 0:00:11]} 46. Bxg4 {[%clk 0:00:28]}  Rc2+ {[%clk 0:00:10]} 47. Ke1 {[%clk 0:00:28]}  fxg4 {[%clk 0:00:09]} 48. Rxg4+ {[%clk 0:00:29]}  Kf5 {[%clk 0:00:07]} 49. Rf4+ {[%clk 0:00:29]}  Ke5 {[%clk 0:00:08]} 50. Rh5+ {[%clk 0:00:29]}  Kd6 {[%clk 0:00:08]} 51. Rxh6+ {[%clk 0:00:27]}  Ke7 {[%clk 0:00:07]} 52. Rxe4+ {[%clk 0:00:26]}  Kd7 {[%clk 0:00:07]} 53. Ree6 {[%clk 0:00:19]}  Rxb2 {[%clk 0:00:06]} 54. Rh7+ {[%clk 0:00:20]}  Kd8 {[%clk 0:00:06]} 55. Rd6+ {[%clk 0:00:13]}  Ke8 {[%clk 0:00:06]} 56. Rh8+ {[%clk 0:00:13]}  Ke7 {[%clk 0:00:06]} 57. Re6+ {[%clk 0:00:13]}  Kd7 {[%clk 0:00:06]} 58. Rxc8 {[%clk 0:00:13]}  Kxc8 {[%clk 0:00:05]} 59. g4 {[%clk 0:00:12]}  b4 {[%clk 0:00:05]} 60. axb4 {[%clk 0:00:08]}  a3 {[%clk 0:00:06]} 61. Ra6 {[%clk 0:00:07]}  a2 {[%clk 0:00:06]} 62. g5 {[%clk 0:00:07]}  Rb1+ {[%clk 0:00:06]} 63. Kf2 {[%clk 0:00:08]}  a1=Q {[%clk 0:00:06]} 64. Rxa1 {[%clk 0:00:09]}  Rxa1 {[%clk 0:00:06]} 65. Kf3 {[%clk 0:00:10]}  Kd7 {[%clk 0:00:06]} 66. Kf4 {[%clk 0:00:10]}  Rb1 {[%clk 0:00:07]} 67. Kf5 {[%clk 0:00:09]}  Rxb4 {[%clk 0:00:07]} 68. g6 {[%clk 0:00:10]}  Rb1 {[%clk 0:00:06]} 69. Kf6 {[%clk 0:00:07]}  Rf1+ {[%clk 0:00:06]} 70. Kg7 {[%clk 0:00:04]}  Kd6 {[%clk 0:00:07]} 71. e4 {[%clk 0:00:05]}  Rf4 {[%clk 0:00:06]} 72. Kh6 {[%clk 0:00:04]}  Rxe4 {[%clk 0:00:06]} 73. g7 {[%clk 0:00:04]}  Rg4 {[%clk 0:00:06]} 74. Kh7 {[%clk 0:00:05]}  Kxd5 {[%clk 0:00:06]} 75. g8=Q+ {[%clk 0:00:05]}  Rxg8 {[%clk 0:00:06]} 76. Kxg8 {[%clk 0:00:06]} 1/2-1/2


[Site "https://www.chess.com"]